Cogmind - Beta 13 @@@ ROGUE MODE // 2024.06.01 @ 02:18:15 Player: Jammed Result: Destroyed by H-71 Marshal with Heavy Mass Driver Performance ------------- Evolutions (7) 3500 Regions Visited (20) 4000 Robots Destroyed (360) 1800 Value Destroyed (14544) 14544 Prototype IDs (21) 420 Alien Tech Used (1) 200 Bonus (5070) 5070 TOTAL SCORE: 29534 Bonus ------- High Alert Combat Kills 2464 Follower Combat Kills 1031 Met Data Miner 300 Met Warlord at Base 500 MAIN.C Attacked Warlord 500 Warlord Defense Kills 394 Friendly Fire -119 Cogmind --------- Core Integrity 0/1300 Matter 218/300 Energy 100/100 System Corruption 2% Temperature Cool (0) Movement Core (50) Location -3/Research Parts ------- > --- POWER (1) -------- (None) > --- PROPULSION (5) --- (None) > --- UTILITY (10) ----- Improved Target Analyzer Advanced Target Analyzer > --- WEAPON (6) ------- (None) > --- INVENTORY (5) ---- Heavy Treads Heavy Treads Kinecellerator Peak State ------------ > --- POWER ------------ Light Antimatter Reactor > --- PROPULSION ------- Armored Medium Treads Heavy Siege Treads Heavy Siege Treads > --- UTILITY ---------- High-capacity Storage Unit Advanced Sensor Array Improved Target Analyzer Weapon Cycler Experimental Cloaking Device Improved Heavy Armor Plating Force Field Improved Hacking Suite Makeshift System Shield > --- WEAPON ----------- Gauss Rifle Gauss Rifle Gauss Rifle KE Penetrator > --- INVENTORY -------- Matter Compressor Improved Kinecellerator Phase Shifter Improved Heavy Armor Plating Improved Heavy Armor Plating Improved Hacking Suite Advanced System Shield Long-range Tractor Beam KE Penetrator Hypervelocity Coil Gun Hypervelocity Coil Gun Hypervelocity Coil Gun Hypervelocity Coil Gun Antimatter Cannon Rocket Array Makeshift Sword [Rating: 117] Favorites ----------- Power Light Fission Core Engine Ion Engine Power Core Light Fission Core Reactor Light Antimatter Reactor Propulsion Light Treads Treads Light Treads Leg Aluminum Leg Wheel Armored Wheel Hover Unit Gravmag System Utility High-capacity Storage Unit Device Weapon Cycler Storage High-capacity Storage Unit Processor Improved Target Analyzer Hackware Improved Hacking Suite Protection Improved Heavy Armor Plating Weapon Gauss Rifle Energy Gun Small Laser Energy Cannon Particle Cannon Ballistic Gun Gauss Rifle Ballistic Cannon Assault Cannon Launcher Rocket Array Special Weapon Mining Laser Impact Weapon Heavy Hammer Slashing Weapon Makeshift Sword Build | -11 -10 -10 -10 -9 -8 -7 -7 -7 -6 -6 -6 -6 -5 -5 -5 -5 -5 -4 -4 -3 ------- Run | Yrd Mat Min Exi Min Mat Fac Was Fac Fac Low Low Dat Pro Fac Upp Upp War Pro Fac Res Slots Evolved 14 | . . . . . 4 2 . . 2 . . . . 2 . . . . 2 2 Power . | . . . . . . . . . . . . . . . . . . . . . Propulsion 2 | . . . . . 1 . . . 1 . . . . . . . . . . . Utility 8 | . . . . . 3 2 . . 1 . . . . 1 . . . . 1 . Weapon 4 | . . . . . . . . . . . . . . 1 . . . . 1 2 Parts Attached 314 | 1 15 . . 5 37 9 12 16 79 6 2 2 2 27 6 5 16 4 61 9 Power 27 | . 1 . . 1 4 1 1 . 6 . 1 . . 1 . . 1 . 10 . Engine 10 | . 1 . . 1 4 1 1 . 2 . . . . . . . . . . . Core 8 | . . . . . . . . . 4 . 1 . . 1 . . . . 2 . Reactor 9 | . . . . . . . . . . . . . . . . . 1 . 8 . Propulsion 62 | . 3 . . 1 9 2 2 4 22 . 1 . . 2 3 . 2 2 6 3 Treads 45 | . 1 . . 1 9 2 2 3 11 . 1 . . 2 2 . 2 1 5 3 Leg 1 | . . . . . . . . . 1 . . . . . . . . . . . Wheel 14 | . 2 . . . . . . 1 8 . . . . . 1 . . 1 1 . Hover 2 | . . . . . . . . . 2 . . . . . . . . . . . Flight . | . . . . . . . . . . . . . . . . . . . . . Utility 130 | 1 6 . . . 14 6 3 9 31 4 . . . 11 2 5 9 2 23 4 Device 64 | 1 1 . . . 5 4 . 6 13 4 . . . 4 1 4 6 1 12 2 Storage 8 | . 5 . . . 1 . . 1 1 . . . . . . . . . . . Processor 14 | . . . . . 1 1 . 1 6 . . . . 2 . . . . 1 2 Hackware 5 | . . . . . . . 1 . 1 . . . . . . 1 . . 2 . Protection 39 | . . . . . 7 1 2 1 10 . . . . 5 1 . 3 1 8 . Artifact . | . . . . . . . . . . . . . . . . . . . . . Weapon 95 | . 5 . . 3 10 . 6 3 20 2 . 2 2 13 1 . 4 . 22 2 Energy Gun 6 | . 3 . . 2 . . . . . . . . . . . . . . 1 . Energy Cannon 4 | . . . . . 4 . . . . . . . . . . . . . . . Ballistic Gun 62 | . 1 . . . 3 . 5 2 17 1 . 2 2 9 1 . 3 . 15 1 Ballistic Cannon 8 | . . . . . 2 . . 1 3 1 . . . . . . . . . 1 Launcher 9 | . . . . 1 . . 1 . . . . . . 4 . . . . 3 . Special Weapon 1 | . 1 . . . . . . . . . . . . . . . . . . . Impact Weapon 1 | . . . . . 1 . . . . . . . . . . . . . . . Slashing Weapon 4 | . . . . . . . . . . . . . . . . . 1 . 3 . Piercing Weapon . | . . . . . . . . . . . . . . . . . . . . . Special Melee Weapon . | . . . . . . . . . . . . . . . . . . . . . Unidentified Prototypes 9 | . . . . . . . . 1 2 1 . . . . . . 2 . 2 1 Corrupted Parts 1 | . . . . . . . . . 1 . . . . . . . . . . . System Corruption 5 | . . . . . . . . . 5 . . . . . . . . . . . Parts Lost 129 | . 4 . . 5 7 2 8 8 40 . 1 . 3 6 1 . 1 . 36 7 Power 12 | . 1 . . 1 . . . . 4 . 1 . . . . . . . 4 1 Propulsion 32 | . 1 . . 1 2 . 2 3 12 . . . 1 2 . . . . 5 3 Utility 48 | . . . . 1 4 2 4 3 13 . . . . 3 1 . 1 . 14 2 Weapon 37 | . 2 . . 2 1 . 2 2 11 . . . 2 1 . . . . 13 1 Highest Loss Streak 14 | . 1 . . 5 2 2 8 7 14 . 1 . 2 3 1 . 1 . 7 3 To Critical Strikes 1 | . . . . . . . 1 . . . . . . . . . . . . . Average Slot Usage (%) 84 | . 93 100 100 97 97 96 51 87 82 81 84 76 82 79 74 86 82 83 76 47 Engine 3 | . 10 14 14 13 7 7 4 7 1 . . . . . . . . . . . Core 2 | . . . . . . . . . 3 6 5 6 6 5 5 5 4 . . . Treads 14 | . 3 14 14 14 26 23 11 18 13 6 9 12 12 8 6 16 16 15 12 10 Leg 1 | . 17 . . . . . . . . . . . . . . . . . . . Wheel 3 | . 6 14 14 13 . . . . 4 12 12 12 7 4 1 5 . . . . Device 13 | . 14 14 14 13 17 16 4 13 11 12 12 12 12 15 11 11 11 16 13 3 Storage 7 | . 14 14 14 14 9 7 1 5 6 6 6 6 6 5 5 5 5 5 5 3 Processor 7 | . . . . . 8 14 2 . 8 12 12 12 12 10 5 5 5 5 7 11 Hackware 5 | . . . . . . . 5 7 10 6 6 6 6 5 5 9 11 11 10 3 Protection 6 | . . . . . 8 11 8 17 7 6 6 6 6 5 14 11 10 5 4 . Energy Gun 2 | . 18 28 28 26 . . . . . . . . . . . . . . . 3 Energy Cannon 1 | . . . . . 7 . . . . . . . . . . . . . . . Ballistic Gun 10 | . 7 . . . 2 15 9 12 9 9 12 1 11 15 16 16 15 16 15 . Ballistic Cannon 1 | . . . . . 8 . . . 1 2 . . . . . . . . . 3 Naked Turns 3 | . . . . . . . 3 . . . . . . . . . . . . . Heaviest Build 120 | 14 48 48 48 48 112 120 120 45 104 76 72 72 72 85 82 87 88 88 102 73 Greatest Support 170 | 20 20 10 10 40 66 60 60 63 122 24 24 24 24 98 28 28 167 167 168 170 Greatest Overweight (x) 15 | . 4 4 4 4 1 1 1 10 15 3 2 2 5 7 2 3 3 5 6 13 Average Overweight (x) 1 | . 1 4 4 3 . 1 . . 1 2 2 2 3 5 2 2 . . . . Largest Inventory Capacity 25 | 8 25 20 20 20 25 25 25 10 20 20 20 20 20 20 20 20 20 20 20 20 Average Capacity 19 | 8 14 20 20 20 23 25 9 8 18 20 20 20 20 20 20 20 20 20 20 19 Most Carried 25 | 7 20 20 20 20 25 25 25 10 20 20 20 20 19 20 20 20 20 20 20 16 Average Carried 17 | 6 13 20 20 19 21 24 9 8 16 19 19 19 18 19 18 19 18 19 17 14 Final Capacity 25 | 8 20 20 20 20 25 25 5 10 20 20 20 20 20 20 20 20 20 20 20 5 Final Carried 25 | 6 20 20 20 18 25 25 5 9 20 20 19 19 17 18 19 20 19 20 12 5 Class Distribution -------------------- 34% | Mutant 27% | Scavenger-Mutant 11% | Scavenger-Gunner 8% | Hacker-Mutant 5% | Hacker-Tank 3% | Derelict-Tank 3% | Scavenger-Tank 3% | Hacker-Gunner Dominant Class ---------------- Mutant | -10/Materials Mutant | -10/Mines Mutant | -10/Exiles Mutant | -9/Mines Mutant | -8/Materials Scavenger-Mutant | -7/Factory Mutant | -7/Waste Scavenger-Mutant | -7/Factory Scavenger-Mutant | -6/Factory Scavenger-Mutant | -6/Lower Caves Scavenger-Mutant | -6/Lower Caves Mutant | -6/Data Miner Scavenger-Mutant | -5/Proximity Caves Scavenger-Gunner | -5/Factory Tank | -5/Upper Caves Derelict-Tank | -5/Upper Caves Hacker-Tank | -5/Warlord Scavenger-Tank | -4/Proximity Caves Scavenger-Gunner | -4/Factory Mutant | -3/Research Resources | -11 -10 -10 -10 -9 -8 -7 -7 -7 -6 -6 -6 -6 -5 -5 -5 -5 -5 -4 -4 -3 ----------- Run | Yrd Mat Min Exi Min Mat Fac Was Fac Fac Low Low Dat Pro Fac Upp Upp War Pro Fac Res Matter Collected 11935 | 212 232 . . 10 1025 419 372 532 3297 398 127 . 214 998 166 172 300 311 2937 213 Remotely 2377 | . . . . . . . . . 948 . . . . . . . 166 . 1263 . Salvage Created 15529 | 103 615 . . 153 2324 618 482 564 3197 79 137 . 171 1490 65 54 192 285 4664 336 Parts 721 | 5 33 . . 8 108 26 4 26 149 7 10 . 10 80 . 6 10 10 208 21 Haulers Intercepted 12 | . 2 . . . 6 . . 1 1 . . . . . . . . . 2 . Recyclers Shooed 11 | . . . . . 1 . . . 4 . . . . 3 . . . . 3 . Parts Field Recycled . | . . . . . . . . . . . . . . . . . . . . . Retrieved Matter . | . . . . . . . . . . . . . . . . . . . . . Parts Self-Destructed 59 | . . . . . . . . . . 7 15 . 21 . . 6 . 10 . . Prevented . | . . . . . . . . . . . . . . . . . . . . . Kills | -11 -10 -10 -10 -9 -8 -7 -7 -7 -6 -6 -6 -6 -5 -5 -5 -5 -5 -4 -4 -3 ------- Run | Yrd Mat Min Exi Min Mat Fac Was Fac Fac Low Low Dat Pro Fac Upp Upp War Pro Fac Res Combat Hostiles Destroyed 274 | . 12 . . 7 45 13 2 12 49 4 4 . 5 40 . 1 4 4 62 10 Melee 4 | . . . . . . . . . 4 . . . . . . . . . . . Guns 167 | . 12 . . 2 9 13 1 9 38 2 4 . 5 19 . 1 4 4 43 1 Cannons 55 | . . . . . 34 . . 3 7 2 . . . . . . . . . 9 AOE 40 | . . . . 4 . . . . . . . . . 21 . . . . 15 . Classes Destroyed 21 | 2 5 . . . 5 2 1 1 1 . . . 2 1 . . . . 1 . Worker 20 | . . . . . 3 . . . 4 . . . . 3 . . . . 10 . Builder 11 | . . . . . . . . . 2 . . . . 2 . . . . 7 . Tunneler 6 | 1 1 . . 1 1 . . . 1 . . . . . . . . . 1 . Hauler 12 | . 2 . . . 6 . . 1 1 . . . . . . . . . 2 . Recycler 16 | 1 1 . . . 3 1 . . 6 . . . . . . . . . 4 . Mechanic 1 | . . . . . . . . . . . . . . . . . . . 1 . Operator 6 | . 1 . . . 3 . . . 1 . . . . 1 . . . . . . Drone 2 | . . . . . . . . . . . . . 2 . . . . . . . Watcher 14 | . 1 . . . 5 1 . . 2 . . . . . . . . . 5 . Swarmer 82 | . 6 . . 4 13 6 . 2 6 3 3 . 1 18 . . 2 . 11 7 Grunt 80 | . 6 . . 3 19 5 . 3 11 . 1 . . 8 . . . . 24 . Brawler 3 | . . . . . . 1 . . . . . . . 2 . . . . . . Duelist 5 | . . . . . . . . 4 . . . . . . . . . . 1 . Protector 1 | . . . . . . . . . . . . . . 1 . . . . . . Sentry 18 | . . . . . 7 . . . 6 1 . . . 2 . . . . 1 1 Specialist 2 | . . . . . 2 . . . . . . . . . . . . . . . Hunter 40 | . . . . . 3 . . . 14 . . . . 4 . 1 2 4 12 . Programmer 35 | . . . . . . 1 . 2 11 . . . 1 5 . . . . 13 2 Heavy 2 | . . . . . 1 . . . 1 . . . . . . . . . . . Behemoth 1 | . . . . . . . . . . . . . 1 . . . . . . . Compactor 2 | . . . . . . . 2 . . . . . . . . . . . . . Decomposer 3 | . . . . . . . . . . . . . . . 3 . . . . . Thug 1 | . . . . . . . . 1 . . . . . . . . . . . . Best Kill Streak 19 | 2 3 . . 6 9 4 1 3 4 2 2 . 2 10 . 1 4 2 19 6 Combat Bots Only 10 | . 3 . . 5 4 4 1 3 3 2 2 . 2 8 . 1 4 2 10 6 Max Kills in Single Turn 8 | 1 2 . . 2 2 1 1 1 2 1 1 . 1 6 1 1 2 2 8 1 Gunslinging 1 | . 1 . . . 1 . . . . . . . . 1 . . 1 1 1 . Exploded 6 | . . . . 2 . . . . . . . . . 6 . . . . 4 . Melee 1 | . . . . . . . . . 1 . . . . . . . . . . . Uniques/NPCs Destroyed . | . . . . . . . . . . . . . . . . . . . . . Combat | -11 -10 -10 -10 -9 -8 -7 -7 -7 -6 -6 -6 -6 -5 -5 -5 -5 -5 -4 -4 -3 -------- Run | Yrd Mat Min Exi Min Mat Fac Was Fac Fac Low Low Dat Pro Fac Upp Upp War Pro Fac Res Hostile Shots Fired 2640 | . 64 . . 43 252 97 5 60 818 84 19 . 27 199 19 9 54 98 677 115 Missed 668 | . 17 . . 5 57 24 1 11 212 29 7 . 4 56 6 3 8 25 187 16 Damage Taken 31347 | . 567 . . 492 2138 1011 390 1258 8149 572 187 . 427 2319 73 75 665 949 9101 2974 Core 3773 | . 115 . . 104 313 78 188 66 664 102 . . 21 180 . 22 7 30 524 1359 Absorbed by Shields 1817 | . . . . . 320 212 12 24 . . . . . 665 27 33 51 197 276 . Reduced by Siege Mode 1494 | . . . . . . . . . 242 . . . . 63 . . 106 124 804 155 Redirected to Shielding 5 | . . . . . . . . . 5 . . . . . . . . . . . Ignored by Resistances 923 | . . . . . . . . . 919 . . . . . 4 . . . . . Regen/Repaired (Parts) 4140 | . . . . . 79 . . 51 803 . . . . . . . 1107 . 2100 . Core Remaining (%) 49 | 100 . . . 12 43 . . 52 . . . . 7 . . . . 76 54 . Volleys Fired 967 | 2 79 . . 20 150 47 18 38 278 26 12 . 17 60 4 4 9 21 160 22 Largest 4 | 2 2 . . 2 2 2 1 2 2 2 2 . 2 3 3 3 3 3 4 2 Hottest 136 | 70 100 . . 80 136 50 33 60 60 68 56 . 56 89 89 89 84 84 135 96 Shots Fired 1983 | 4 131 . . 34 282 93 18 70 466 49 24 . 38 152 13 13 27 63 480 26 Gun 1611 | 4 129 . . 31 53 93 1 65 401 36 24 . 38 145 13 13 27 63 471 4 Cannon 334 | . . . . . 229 . . 5 65 13 . . . . . . . . . 22 Launcher 36 | . . . . 3 . . 17 . . . . . . 7 . . . . 9 . Special 2 | . 2 . . . . . . . . . . . . . . . . . . . Kinetic 1676 | 2 33 . . . 163 93 1 70 466 49 24 . 38 145 13 13 27 63 450 26 Thermal 271 | 2 98 . . 31 119 . . . . . . . . . . . . . 21 . Explosive 36 | . . . . 3 . . 17 . . . . . . 7 . . . . 9 . Electromagnetic . | . . . . . . . . . . . . . . . . . . . . . Robot Hit Streak 36 | 3 25 . . 11 31 8 9 6 27 10 10 . 20 21 14 17 18 20 36 6 Robot Miss Streak 6 | . 2 . . 2 4 2 1 5 6 2 3 . 2 3 . 1 4 1 5 2 Penetration Max 2 | . . . . . . . . . 1 . . . . 1 . . . 1 2 . Secondary Targets 29 | . 1 . . . 1 2 . 2 6 . . . . 3 . . 1 1 12 . Max Gunslinging Chain 1 | . 1 . . . 1 1 . 1 1 . . . . 1 . . 1 1 1 . Shots Hit Robots 1437 | 3 95 . . 28 208 67 16 43 319 16 15 . 26 114 8 8 20 55 378 18 Core Hits 762 | 3 30 . . 11 90 28 5 22 138 5 7 . 6 120 4 3 10 16 253 11 Critical Kills 50 | . . . . . 1 . . . 10 1 . . 1 5 . . . 2 29 1 Critical Parts Destroyed 106 | . . . . . 1 1 . 1 7 2 2 . 1 10 . 2 2 6 71 . Critical Strikes 175 | . 4 . . . 6 1 . 1 21 3 2 . 2 15 . 2 2 8 104 4 Burn 8 | . 4 . . . . . . . . . . . . . . . . . 4 . Meltdown 1 | . . . . . 1 . . . . . . . . . . . . . . . Destroy 156 | . . . . . 1 1 . 1 18 3 2 . 2 15 . 2 2 8 100 1 Blast 10 | . . . . . 4 . . . 3 . . . . . . . . . . 3 Melee Attacks 12 | . . . . . 1 . . . . . . . . . . . 6 . 5 . Impact 1 | . . . . . 1 . . . . . . . . . . . . . . . Slashing 11 | . . . . . . . . . . . . . . . . . 6 . 5 . Piercing . | . . . . . . . . . . . . . . . . . . . . . Sneak Attacks . | . . . . . . . . . . . . . . . . . . . . . Combat Hostiles . | . . . . . . . . . . . . . . . . . . . . . Follow-up Attacks . | . . . . . . . . . . . . . . . . . . . . . Damage Inflicted 37055 | 35 1138 . . 723 4575 1138 1436 1090 8165 439 298 . 466 4762 169 119 359 800 10604 739 Guns 20968 | 35 1138 . . 278 568 1138 17 828 5856 176 298 . 466 2486 169 119 359 800 6174 63 Cannons 7400 | . . . . . 4001 . . 262 2198 263 . . . . . . . . . 676 Explosions 8570 | . . . . 445 . . 1419 . . . . . . 2276 . . . . 4430 . Melee . | . . . . . . . . . . . . . . . . . . . . . Ramming 117 | . . . . . 6 . . . 111 . . . . . . . . . . . Kinetic 24496 | 10 273 . . . 2582 1138 17 1090 8054 439 298 . 466 2486 169 119 359 800 5457 739 Thermal 5773 | 25 865 . . 278 1987 . . . . . . . . . . . . . 2618 . Explosive 6669 | . . . . 445 . . 1419 . . . . . . 2276 . . . . 2529 . Electromagnetic . | . . . . . . . . . . . . . . . . . . . . . Impact . | . . . . . . . . . . . . . . . . . . . . . Slashing . | . . . . . . . . . . . . . . . . . . . . . Piercing . | . . . . . . . . . . . . . . . . . . . . . Highest Corruption 22 | . . . . 13 . 5 5 9 17 17 17 17 20 4 4 4 4 . 22 2 Average Corruption 7 | . . . . 11 . 4 5 5 6 17 17 17 17 2 4 4 4 . 9 1 Corruption Purged . | . . . . . . . . . . . . . . . . . . . . . Corruption Blocked 1 | . . . . . . . . . . . . . . . . . 1 . . . Effects 480 | . . . . 2 . 10 13 28 147 45 21 5 37 23 22 15 2 . 107 3 Message Errors 119 | . . . . . . 5 3 4 44 8 4 1 11 8 7 4 . . 20 . Matter Fused 101 | . . . . . . . 2 6 30 12 2 1 8 5 5 2 . . 25 3 Heat Flow Errors 43 | . . . . 1 . 1 . 3 17 4 4 . . 2 2 1 1 . 7 . Energy Discharges 53 | . . . . . . 1 5 3 17 5 1 . 6 4 . 3 . . 8 . Parts Rejected 7 | . . . . . . 1 . 2 2 . . . . . . . . . 2 . Parts Fused 7 | . . . . . . . . . 1 1 1 . 1 1 . 2 . . . . Data Loss (minor) 60 | . . . . . . . 2 6 16 5 4 1 5 3 3 2 . . 13 . Data Loss (major) 34 | . . . . . . 1 1 2 7 1 3 1 2 . 3 . 1 . 12 . Misfires 22 | . . . . . . . . . 4 2 1 . 4 . 1 1 . . 9 . Alerts 11 | . . . . . . . . 2 5 1 . 1 . . 1 . . . 1 . Misdirections 4 | . . . . . . . . . . 2 . . . . . . . . 2 . Weapon Failures 19 | . . . . 1 . 1 . . 4 4 1 . . . . . . . 8 . Overload Shots 16 | . . . . . . . . . . . . . . . . . . . 16 . Effects 1 | . . . . . . . . . . . . . . . . . . . 1 . Heat Surge 1 | . . . . . . . . . . . . . . . . . . . 1 . Overflow Damage 639 | . . . . 31 101 . 12 50 97 16 . . . 3 . . . . 307 22 Projectiles 286 | . . . . . 101 . . 50 97 16 . . . . . . . . . 22 Explosions 353 | . . . . 31 . . 12 . . . . . . 3 . . . . 307 . Melee . | . . . . . . . . . . . . . . . . . . . . . Knockbacks 31 | . . . . . 14 . . 1 10 1 . . . . . . . . . 5 Impact 1 | . . . . . . . . . 1 . . . . . . . . . . . Kinetic 28 | . . . . . 13 . . 1 9 1 . . . . . . . . . 4 Secondary 2 | . . . . . 1 . . . . . . . . . . . . . . 1 Self-Inflicted Damage 547 | . . . . . . . 181 . 6 . . . . 219 . . . . 141 . Shots 24 | . . . . . . . 5 . . . . . . 10 . . . . 9 . Rammed 18 | . . . . . 1 . . . 17 . . . . . . . . . . . Targets Rammed 22 | . . . . . 1 . . . 21 . . . . . . . . . . . Kicked . | . . . . . . . . . . . . . . . . . . . . . Crushed 4 | . . . . . . . . . 4 . . . . . . . . . . . Highest Temperature 302 | 40 90 . . 240 293 241 . 243 274 206 212 . 16 302 278 209 156 100 278 17 Average Temperature 61 | 20 27 . . 72 65 87 . 87 54 65 64 . 7 51 80 73 81 49 104 8 Received Heat Transfer 3851 | . 225 . . 159 741 152 . 81 948 66 18 . . 331 9 . . . 1013 108 Effects 6 | . . . . . . . . 1 . . . . . . . 1 . . 4 . Energy Bleed 2 | . . . . . . . . . . . . . . . . 1 . . 1 . Interference 4 | . . . . . . . . 1 . . . . . . . . . . 3 . Siege Activations 56 | . . . . . . . . . 14 . . . 2 11 . . 1 3 22 3 Total Turns 1016 | . . . . . . . . . 175 . . . 36 142 . . 21 54 544 44 Longest Duration 87 | . . . . . . . . . 36 . . . 22 44 . . 21 24 87 28 Robots Corrupted . | . . . . . . . . . . . . . . . . . . . . . Combat Hostiles . | . . . . . . . . . . . . . . . . . . . . . Parts Fried . | . . . . . . . . . . . . . . . . . . . . . Impact Corruptions 1 | . . . . . . . . . . . . . . . . . . . . 1 Robots Melted 7 | . . . . 1 2 . . . . . . . . . . . . . 4 . Combat Hostiles 7 | . . . . 1 2 . . . . . . . . . . . . . 4 . Parts Melted 34 | . 6 . . 1 7 . . 1 . . . . . 3 . . . . 16 . Heat Transferred 9844 | 74 2350 . . 625 3515 . . . . . . . . . . . . . 3280 . Parts Sabotaged 5 | . . . . . . . . . . . . . . . . . . . 1 4 Parts Stolen . | . . . . . . . . . . . . . . . . . . . . . Parts Stripped . | . . . . . . . . . . . . . . . . . . . . . Power Chain Reactions . | . . . . . . . . . . . . . . . . . . . . . Alert | -11 -10 -10 -10 -9 -8 -7 -7 -7 -6 -6 -6 -6 -5 -5 -5 -5 -5 -4 -4 -3 ------- Run | Yrd Mat Min Exi Min Mat Fac Was Fac Fac Low Low Dat Pro Fac Upp Upp War Pro Fac Res Peak Influence 1699 | 10 116 5 . 211 660 352 64 536 506 . . . . 1003 . . . . 1699 1051 Initial 891 | . 6 5 . . . 280 34 . 207 . . . . 150 . . . . 150 891 Average 287 | 7 33 5 . 53 212 199 14 274 243 . . . . 327 . . . . 702 916 Maximum Alert Level 5 | . . . . 1 2 1 . 2 2 . . . . 3 . . . . 5 3 Low Security (%) 51 | 100 100 100 . 84 64 54 100 37 32 . . . . 42 . . . . 28 . Level 1 28 | . . . . 15 17 45 . 33 60 . . . . 33 . . . . 8 . Level 2 9 | . . . . . 18 . . 28 7 . . . . 5 . . . . 10 . Level 3 9 | . . . . . . . . . . . . . . 18 . . . . 36 100 Level 4 . | . . . . . . . . . . . . . . . . . . . 6 . Level 5 1 | . . . . . . . . . . . . . . . . . . . 10 . High Security . | . . . . . . . . . . . . . . . . . . . . . Max Security . | . . . . . . . . . . . . . . . . . . . . . Squads Dispatched 80 | . 4 . . . 8 5 . 11 21 . . . . 12 . . . . 15 4 Investigation 18 | . 3 . . . 2 1 . 2 6 . . . . 2 . . . . 2 . Extermination 23 | . . . . . . 1 . 2 10 . . . . 3 . . . . 6 1 Reinforcement 19 | . 1 . . . 6 . . 3 4 . . . . 4 . . . . 1 . Assault 12 | . . . . . . . . 1 1 . . . . 3 . . . . 6 1 Garrison 8 | . . . . . . 3 . 3 . . . . . . . . . . . 2 Intercept . | . . . . . . . . . . . . . . . . . . . . . Searches Triggered . | . . . . . . . . . . . . . . . . . . . . . Data Miner Redirects 1 | . . . . . . . . . . . . . . . . . . . 1 . Construction Impeded 2 | . . . . . . . . . . . . . . 1 . . . . 1 . Haulers Reinforced 1 | . . . . . . . . 1 . . . . . . . . . . . . Active Scanning Responses . | . . . . . . . . . . . . . . . . . . . . . Cargo Convoy Interrupts . | . . . . . . . . . . . . . . . . . . . . . Stealth | -11 -10 -10 -10 -9 -8 -7 -7 -7 -6 -6 -6 -6 -5 -5 -5 -5 -5 -4 -4 -3 --------- Run | Yrd Mat Min Exi Min Mat Fac Was Fac Fac Low Low Dat Pro Fac Upp Upp War Pro Fac Res Distress Signals 17 | . 1 1 . . 5 1 . . 1 . . . . 3 . . 2 . 2 1 Communications Jammed . | . . . . . . . . . . . . . . . . . . . . . Distress Signals . | . . . . . . . . . . . . . . . . . . . . . Times Spotted 429 | . 19 . . 9 77 16 7 33 67 9 8 . 7 54 1 1 8 5 86 22 Peak Tracking Total 10 | . 5 . . 5 8 4 3 5 5 5 4 . 4 8 1 1 5 2 10 7 Tactical Retreats 26 | . 1 . . 1 5 . 1 . 4 3 4 . . 1 1 . . . 4 1 Traps | -11 -10 -10 -10 -9 -8 -7 -7 -7 -6 -6 -6 -6 -5 -5 -5 -5 -5 -4 -4 -3 ------- Run | Yrd Mat Min Exi Min Mat Fac Was Fac Fac Low Low Dat Pro Fac Upp Upp War Pro Fac Res Traps Triggered 18 | . 3 . . . 1 2 . 1 5 . . . . 1 . . . . 5 . Indirectly . | . . . . . . . . . . . . . . . . . . . . . Trap Hack Attempts . | . . . . . . . . . . . . . . . . . . . . . Triggered . | . . . . . . . . . . . . . . . . . . . . . Disarmed . | . . . . . . . . . . . . . . . . . . . . . Reprogrammed . | . . . . . . . . . . . . . . . . . . . . . Reused . | . . . . . . . . . . . . . . . . . . . . . Traps Extracted . | . . . . . . . . . . . . . . . . . . . . . Installed . | . . . . . . . . . . . . . . . . . . . . . Triggered 15 | . . . . . . . . . . . 2 . . . . . 13 . . . Machines | -11 -10 -10 -10 -9 -8 -7 -7 -7 -6 -6 -6 -6 -5 -5 -5 -5 -5 -4 -4 -3 ---------- Run | Yrd Mat Min Exi Min Mat Fac Was Fac Fac Low Low Dat Pro Fac Upp Upp War Pro Fac Res Machines Disabled 44 | . . . . . 3 . . 3 1 . . . . 7 . . . . 30 . Max in Single Turn 10 | . . . . . 1 . . . 1 . . . . 4 . . . . 10 . Garrison Access 3 | . . . . . 1 . . . 1 . . . . 1 . . . . . . Machines Repaired . | . . . . . . . . . . . . . . . . . . . . . Machines Dismantled . | . . . . . . . . . . . . . . . . . . . . . Machines Sabotaged . | . . . . . . . . . . . . . . . . . . . . . Overloaded Fab Kills . | . . . . . . . . . . . . . . . . . . . . . Hacking | -11 -10 -10 -10 -9 -8 -7 -7 -7 -6 -6 -6 -6 -5 -5 -5 -5 -5 -4 -4 -3 --------- Run | Yrd Mat Min Exi Min Mat Fac Was Fac Fac Low Low Dat Pro Fac Upp Upp War Pro Fac Res Machines Accessed 75 | . 6 . 1 1 10 2 . 6 22 . . 4 . 9 . . 3 1 8 2 Terminals 39 | . 6 . . 1 7 2 . 3 8 . . . . 6 . . . 1 4 1 Fabricators 8 | . . . . . . . . 1 5 . . . . 1 . . . . 1 . Repair Stations 7 | . . . . . 1 . . . 3 . . . . . . . . . 3 . Recycling Units 6 | . . . . . 1 . . 2 2 . . . . 1 . . . . . . Scanalyzers 1 | . . . . . . . . . 1 . . . . . . . . . . . Garrison Access 6 | . . . . . 1 . . . 3 . . . . 1 . . . . . 1 Total Hacks 211 | . 18 . 1 2 22 4 . 13 56 . . 31 . 15 . . 6 1 39 3 Successful 127 | . 6 . 1 1 15 2 . 5 37 . . 31 . 7 . . 6 1 15 . Failed 84 | . 12 . . 1 7 2 . 8 19 . . . . 8 . . . . 24 3 Catastrophic 16 | . . . . . 3 1 . 1 3 . . . . 2 . . . . 5 1 Database Lockouts . | . . . . . . . . . . . . . . . . . . . . . Manual 63 | . 18 . . 2 14 2 . 3 16 . . . . 5 . . 1 . 2 . Terminals 98 | . 18 . . 2 17 4 . 7 23 . . . . 10 . . . 1 15 1 Fabricators 21 | . . . . . . . . 3 13 . . . . 2 . . . . 3 . Repair Stations 31 | . . . . . 2 . . . 8 . . . . . . . . . 21 . Recycling Units 9 | . . . . . 2 . . 3 3 . . . . 1 . . . . . . Scanalyzers 5 | . . . . . . . . . 5 . . . . . . . . . . . Garrison Access 9 | . . . . . 1 . . . 4 . . . . 2 . . . . . 2 Terminal Hacks 71 | . 3 . 1 1 5 2 . 2 11 . . 31 . 3 . . 6 1 5 . Record 17 | . . . 1 . . . . . . . . 11 . . . . 4 1 . . Part Schematic 14 | . . . . . . . . 1 1 . . 11 . 1 . . . . . . Robot Schematic 6 | . . . . . . . . . . . . 6 . . . . . . . . Robot Analysis 5 | . 2 . . 1 1 . . . . . . . . . . . . . 1 . Prototype ID Bank 4 | . 1 . . . . . . . . . . 3 . . . . . . . . Open Door 2 | . . . . . . . . . . . . . . . . . 2 . . . Level Access Points 1 | . . . . . . . . . . . . . . . . . . . 1 . Branch Access Points 2 | . . . . . . 1 . . 1 . . . . . . . . . . . Terminal Index 2 | . . . . . 1 . . . 1 . . . . . . . . . . . Fabricator Index 2 | . . . . . . . . . 1 . . . . . . . . . 1 . Repair Station Index 2 | . . . . . . . . . 1 . . . . . . . . . 1 . Alert Level 6 | . . . . . 1 . . 1 3 . . . . 1 . . . . . . Unreport Threat 6 | . . . . . 2 1 . . 2 . . . . . . . . . 1 . Registered Components 1 | . . . . . . . . . 1 . . . . . . . . . . . Zone Layout 1 | . . . . . . . . . . . . . . 1 . . . . . . Fabricator Hacks 15 | . . . . . . . . 1 10 . . . . 2 . . . . 2 . Network Status 1 | . . . . . . . . . 1 . . . . . . . . . . . Load Schematic 7 | . . . . . . . . . 5 . . . . 1 . . . . 1 . Build 7 | . . . . . . . . 1 4 . . . . 1 . . . . 1 . Repair Station Hacks 17 | . . . . . 2 . . . 7 . . . . . . . . . 8 . Scan Component 9 | . . . . . 1 . . . 4 . . . . . . . . . 4 . Repair 8 | . . . . . 1 . . . 3 . . . . . . . . . 4 . Recycling Unit Hacks 4 | . . . . . 1 . . 2 1 . . . . . . . . . . . Report Inventory 4 | . . . . . 1 . . 2 1 . . . . . . . . . . . Scanalyzer 4 | . . . . . . . . . 4 . . . . . . . . . . . Insert Component 2 | . . . . . . . . . 2 . . . . . . . . . . . Analyze 2 | . . . . . . . . . 2 . . . . . . . . . . . Garrison Access Hacks 3 | . . . . . 1 . . . 1 . . . . 1 . . . . . . Seal Access 3 | . . . . . 1 . . . 1 . . . . 1 . . . . . . Unauthorized Hacks 13 | . 3 . . . 6 . . . 3 . . . . 1 . . . . . . Terminals 13 | . 3 . . . 6 . . . 3 . . . . 1 . . . . . . Botnet 10 | . 2 . . . 4 . . . 3 . . . . 1 . . . . . . Operators 3 | . 1 . . . 2 . . . . . . . . . . . . . . . Fabricators . | . . . . . . . . . . . . . . . . . . . . . Repair Stations . | . . . . . . . . . . . . . . . . . . . . . Recycling Units . | . . . . . . . . . . . . . . . . . . . . . Scanalyzers . | . . . . . . . . . . . . . . . . . . . . . Garrison Access . | . . . . . . . . . . . . . . . . . . . . . Data Cores Recovered 1 | . . . . . . . . . 1 . . . . . . . . . . . Used 1 | . . . . . . . . . 1 . . . . . . . . . . . Hacking Detections 56 | . 4 . . . 6 2 . 5 21 . . . . 8 . . . . 8 2 Full Trace Events 14 | . 1 . . . 1 1 . 2 5 . . . . 2 . . . . 2 . Feedback Events . | . . . . . . . . . . . . . . . . . . . . . Feedback Blocked 1 | . . . . . . . . . . . . . . . . . . . 1 . Robot Schematics Acquired 6 | . . . . . . . . . . . . 6 . . . . . . . . Robots Built 3 | . . . . . . . . 3 . . . . . . . . . . . . Authchips . | . . . . . . . . . . . . . . . . . . . . . Time 134 | . . . . . . . . 134 . . . . . . . . . . . . Total Robot Build Rating 12 | . . . . . . . . 12 . . . . . . . . . . . . Part Schematics Acquired 16 | . . . . . . . . 1 3 . . 11 . 1 . . . . . . Parts Built 5 | . . . . . . . . . 4 . . . . 1 . . . . . . Authchips . | . . . . . . . . . . . . . . . . . . . . . Time 529 | . . . . . . . . . 317 . . . . 95 . . . . 117 . Total Part Build Rating 29 | . . . . . . . . . 24 . . . . 5 . . . . . . Parts Repaired 8 | . . . . . 1 . . . 3 . . . . . . . . . 4 . Time 220 | . . . . . 32 . . . 82 . . . . . . . . . 106 . Parts Recycled . | . . . . . . . . . . . . . . . . . . . . . Recycled Matter . | . . . . . . . . . . . . . . . . . . . . . Retrieved Matter . | . . . . . . . . . . . . . . . . . . . . . Retrieved Components . | . . . . . . . . . . . . . . . . . . . . . Parts Scanalyzed 2 | . . . . . . . . . 2 . . . . . . . . . . . Part Schematics Acquired 2 | . . . . . . . . . 2 . . . . . . . . . . . Parts Damaged . | . . . . . . . . . . . . . . . . . . . . . Bothacking | -11 -10 -10 -10 -9 -8 -7 -7 -7 -6 -6 -6 -6 -5 -5 -5 -5 -5 -4 -4 -3 ------------ Run | Yrd Mat Min Exi Min Mat Fac Was Fac Fac Low Low Dat Pro Fac Upp Upp War Pro Fac Res Used RIF Installer . | . . . . . . . . . . . . . . . . . . . . . Robots Hacked . | . . . . . . . . . . . . . . . . . . . . . Non-combat . | . . . . . . . . . . . . . . . . . . . . . Combat . | . . . . . . . . . . . . . . . . . . . . . Robot Hacks Applied . | . . . . . . . . . . . . . . . . . . . . . Relay Couplers Released 3 | . . . . . . . . . 3 . . . . . . . . . . . Programmers 3 | . . . . . . . . . 3 . . . . . . . . . . . Fabnet Peak Effective % . | . . . . . . . . . . . . . . . . . . . . . Robots Rewired . | . . . . . . . . . . . . . . . . . . . . . Allies Hacked 1 | . . . . . . . . 1 . . . . . . . . . . . . Hacks Repelled . | . . . . . . . . . . . . . . . . . . . . . Allies | -11 -10 -10 -10 -9 -8 -7 -7 -7 -6 -6 -6 -6 -5 -5 -5 -5 -5 -4 -4 -3 -------- Run | Yrd Mat Min Exi Min Mat Fac Was Fac Fac Low Low Dat Pro Fac Upp Upp War Pro Fac Res Total Allies 26 | . . . . . . . 19 3 . . . . 1 3 . . . . . . Largest Group 18 | . . . . . . . 18 10 . . . . 1 3 . . . . . . Highest-Rated Group 444 | . . . . . . . 444 302 . . . . 96 93 . . . . . . Highest-Rated Ally 96 | . . . . . . . 35 35 . . . . 96 31 . . . . . . Total Orders . | . . . . . . . . . . . . . . . . . . . . . Ally Attacks 284 | . . . . . . . 97 143 . . . . 13 31 . . . . . . Total Damage 7569 | . . . . . . . 3466 3053 . . . . 455 595 . . . . . . Kills 41 | . . . . . . . 12 23 . . . . 4 2 . . . . . . Allies Corrupted 1 | . . . . . . . . . . . . . 1 . . . . . . . Allies Melted . | . . . . . . . . . . . . . . . . . . . . . Intel | -11 -10 -10 -10 -9 -8 -7 -7 -7 -6 -6 -6 -6 -5 -5 -5 -5 -5 -4 -4 -3 ------- Run | Yrd Mat Min Exi Min Mat Fac Was Fac Fac Low Low Dat Pro Fac Upp Upp War Pro Fac Res Robot Analysis Total 5 | . 2 . . 1 1 . . . . . . . . . . . . . 1 . Derelict Logs Recovered 6 | . . . . . . . . . . 2 2 . . . 1 1 . . . . Drone Launches . | . . . . . . . . . . . . . . . . . . . . . Drone Recoveries . | . . . . . . . . . . . . . . . . . . . . . Exploration | -11 -10 -10 -10 -9 -8 -7 -7 -7 -6 -6 -6 -6 -5 -5 -5 -5 -5 -4 -4 -3 ------------- Run | Yrd Mat Min Exi Min Mat Fac Was Fac Fac Low Low Dat Pro Fac Upp Upp War Pro Fac Res Turns Passed 27809 | 32 2338 258 313 592 4206 882 565 1221 5644 914 490 98 810 2416 817 739 1499 512 3009 454 Spaces Moved 13078 | 18 1217 89 224 349 1410 302 442 661 2520 656 359 78 460 990 376 497 787 239 1195 209 Core 267 | . . . . . . . 259 3 2 . . . . . . . . . . 3 Treads 6278 | . . . . 10 1410 302 183 556 1289 . . . . 110 154 . 785 238 1035 206 Legs 664 | 18 646 . . . . . . . . . . . . . . . . . . . Wheels 5865 | . 571 89 224 339 . . . 102 1225 656 359 78 460 880 222 497 2 1 160 . Hover 4 | . . . . . . . . . 4 . . . . . . . . . . . Flight . | . . . . . . . . . . . . . . . . . . . . . Fastest Speed 50 | 120 110 140 140 140 160 243 50 125 105 120 120 120 120 165 130 130 145 176 145 50 Average Speed 165 | 120 137 140 140 140 217 243 102 156 164 126 120 120 147 190 207 143 176 176 168 161 Slowest Speed 800 | 120 190 140 140 160 243 243 243 550 800 135 120 120 165 320 320 145 180 190 190 700 Overloaded Moves . | . . . . . . . . . . . . . . . . . . . . . Propulsion Burnouts . | . . . . . . . . . . . . . . . . . . . . . Robots Hopped . | . . . . . . . . . . . . . . . . . . . . . Cave-ins Triggered . | . . . . . . . . . . . . . . . . . . . . . Exploration Rate (%) 54 | 3 97 20 57 68 88 9 96 25 60 69 52 68 72 33 66 71 94 52 43 6 Regions Visited 20 Branch Regions 11 Pre-discovered Areas 4 | . . . 1 1 . . . . . 1 . 1 . . . . . . . . Known Exits Taken 5 | . . . . . . . . . 1 . 1 . . 1 1 . . . 1 . Unknown Exits Taken 13 | 1 1 1 1 1 1 . . 1 . 1 . 1 1 . . 1 1 1 . . Scrap Searched 18 | . . . . 1 . . . . . 2 . . 3 . 4 4 . 4 . . Spaces Dug 19 | . 2 . . . 1 . . . 5 4 . . . . . . 2 . 5 . Terrain Destroyed 570 | . 2 . . 32 16 . 77 3 33 8 . . . 143 2 . 2 . 246 6 Melee 8 | . . . . . 1 . . . . . . . . . . . 2 . 5 . Projectile 78 | . 2 . . . 15 . . 3 31 6 . . . 3 2 . . . 10 6 AOE 469 | . . . . 32 . . 77 . . . . . . 140 . . . . 220 . Terrain Rammed . | . . . . . . . . . . . . . . . . . . . . . Walls Destroyed . | . . . . . . . . . . . . . . . . . . . . . Machines Disabled . | . . . . . . . . . . . . . . . . . . . . . Actions | -11 -10 -10 -10 -9 -8 -7 -7 -7 -6 -6 -6 -6 -5 -5 -5 -5 -5 -4 -4 -3 --------- Run | Yrd Mat Min Exi Min Mat Fac Was Fac Fac Low Low Dat Pro Fac Upp Upp War Pro Fac Res Total 17602 | 24 1744 222 223 416 2274 378 534 795 3598 697 399 83 565 1423 402 514 876 294 1845 296 Wait 2916 | 2 401 134 . 39 619 9 56 65 636 4 27 . 87 320 13 . 40 23 389 52 Move 13059 | 17 1216 88 223 348 1409 302 441 660 2519 655 358 77 459 989 375 496 786 238 1194 209 Hop . | . . . . . . . . . . . . . . . . . . . . . Pick Up 151 | 1 21 . . 1 33 4 2 8 37 1 . 1 . 10 2 3 6 3 15 3 Fast Attach 137 | 1 4 . . . 5 5 8 13 40 4 1 2 . 7 4 4 4 3 24 8 Attach 102 | . 1 . . 2 16 2 2 3 34 . 1 . 2 5 . 1 7 1 24 1 Detach 24 | . . . . . 1 1 1 . 6 . . . . 2 . 1 2 . 9 1 Swap 77 | . 10 . . 3 16 2 2 1 5 3 . . . 15 2 . 5 . 13 . Drop 134 | 1 12 . . 3 23 6 4 6 22 4 . 3 . 15 2 5 11 5 12 . Fire 967 | 2 79 . . 20 150 47 18 38 278 26 12 . 17 60 4 4 9 21 160 22 Melee 12 | . . . . . 1 . . . . . . . . . . . 6 . 5 . Ram 4 | . . . . . . . . . 4 . . . . . . . . . . . Kick . | . . . . . . . . . . . . . . . . . . . . . Crush 18 | . . . . . 1 . . . 17 . . . . . . . . . . . Escape Stasis . | . . . . . . . . . . . . . . . . . . . . . Rewire 1 | . . . . . . . . 1 . . . . . . . . . . . . Trap . | . . . . . . . . . . . . . . . . . . . . . Miscellaneous . | . . . . . . . . . . . . . . . . . . . . . Route ------- -11/Scrapyard -10/Materials (discovered 5 exits: [*Mat x3] / [*Min x2]) -10/Mines (discovered 2 exits: [*Mat] / *Exi) -10/Exiles -9/Mines -8/Materials (discovered 3 exits: *Fac x3) -7/Factory (discovered 2 exits: Low x2) -7/Waste -7/Factory (discovered 2 exits: *Fac / *Low) -6/Factory (discovered 7 exits: *Fac x3 / *Low x2 / *Ext x2) -6/Lower Caves -6/Lower Caves -6/Data Miner -5/Proximity Caves -5/Factory (discovered 4 exits: *Fac x2 / *Upp x2) -5/Upper Caves -5/Upper Caves -5/Warlord -4/Proximity Caves -4/Factory (discovered 6 exits: *Res x4 / [*Upp x2]) -3/Research History --------- Turn | Location | Event 1 | -11/Scrapyard | Discovered new exit (range 3) 33 | -11/Scrapyard | Entered Materials 312 | -10/Materials | Build established: Mutant 555 | -10/Materials | Discovered new exit (range 8) 584 | -10/Materials | Discovered new exit (range 12) 642 | -10/Materials | Discovered new exit (range 12) 856 | -10/Materials | Discovered new exit (range 13) 1419 | -10/Materials | Discovered new exit (range 15) 2371 | -10/Materials | Entered Mines 2372 | -10/Mines | Assembled infested the area 2579 | -10/Mines | Discovered new exit (range 10) 2623 | -10/Mines | Deemed a non-threat by the Exiles lab entrance 2623 | -10/Mines | Discovered new exit (range 5) 2629 | -10/Mines | Entered Exiles 2663 | -10/Exiles | Met 8R-AWN 2688 | -10/Exiles | Met EX-HEX 2741 | -10/Exiles | Met EX-DEC 2753 | -10/Exiles | Learned location of Zion (-7) 2926 | -10/Exiles | Discovered new exit (range 14) 2942 | -10/Exiles | Entered Mines 2978 | -9/Mines | Received a Rocket Launcher from a helpful Derelict 3042 | -9/Mines | Core integrity fell below 50% 3152 | -9/Mines | Learned location of Storage (-9) 3489 | -9/Mines | Discovered new exit (range 12) 3510 | -9/Mines | Core integrity fell below 20% 3512 | -9/Mines | System corruption reached 10% 3534 | -9/Mines | Entered Materials 3534 | -8/Materials | Evolved 4 slots: Propulsion x1, Utility x3 3548 | -8/Materials | Lost 5 parts (1p1n1u2w) 4444 | -8/Materials | Discovered new exit (range 16) 4901 | -8/Materials | Repaired Med. Armor Plating 5259 | -8/Materials | Discovered new exit (range 16) 6846 | -8/Materials | Core integrity fell below 50% 7573 | -8/Materials | Build established: Scavenger-Mutant 7655 | -8/Materials | Discovered new exit (range 15) 7740 | -8/Materials | Entered Factory 7740 | -7/Factory | Evolved 2 slots: Utility x2 7782 | -7/Factory | Identified exit to Lower Caves 8002 | -7/Factory | Garrison activated, responded to threat 8622 | -7/Factory | Sucked down chute 8622 | -7/Factory | Entered Waste 8623 | -7/Waste | Met a frightened Derelict 8652 | -7/Waste | Spotted C-40 Crusher 8668 | -7/Waste | Allies destroyed C-40 Crusher 8674 | -7/Waste | Spotted C-40 Crusher 8687 | -7/Waste | Destroyed C-40 Crusher 8700 | -7/Waste | Spotted C-40 Crusher 8730 | -7/Waste | Crushed by Compactor (1 part destroyed, 2 dropped) 8733 | -7/Waste | Crushed by Compactor (1 part destroyed, 2 dropped) 8736 | -7/Waste | Spotted C-40 Crusher 8736 | -7/Waste | Crushed by Compactor (1 part destroyed, 1 dropped) 8739 | -7/Waste | Crushed by Compactor (1 part destroyed, 1 dropped) 8746 | -7/Waste | Destroyed C-40 Crusher 8767 | -7/Waste | Spotted C-40 Crusher 8769 | -7/Waste | Spotted C-40 Crusher 8770 | -7/Waste | Lost 8 parts (2n4u2w) 8844 | -7/Waste | Warlord forces began an assault 8860 | -7/Waste | Allies destroyed C-40 Crusher 8874 | -7/Waste | Allies destroyed C-40 Crusher 8905 | -7/Waste | Lost 8 allies 9026 | -7/Waste | Build established: Mutant 9161 | -7/Waste | Discovered new exit (range 13) 9187 | -7/Waste | Entered Factory 9187 | -7/Factory | Accompanied by 10 allies 9377 | -7/Factory | Found Prototype Launcher 9377 | -7/Factory | Identified Rocket Array 9386 | -7/Factory | Found Rocket Array 9528 | -7/Factory | Garrison activated, responded to threat 9541 | -7/Factory | Lost 7 allies 9545 | -7/Factory | Build established: Scavenger-Mutant 9599 | -7/Factory | Fabricated L-41 Fighter (x3) 9851 | -7/Factory | Discovered exit to Lower Caves (range 8) 10116 | -7/Factory | P-60 Hacker assimilated allied Fighter 4b 10234 | -7/Factory | P-60 Hacker assimilated allied XQ-09Z(g) 10275 | -7/Factory | Lost 7 parts (3n3u1w) 10387 | -7/Factory | First assault squad dispatched 10396 | -7/Factory | Discovered new exit (range 6) 10408 | -7/Factory | Entered another Factory area 10408 | -6/Factory | Evolved 2 slots: Propulsion x1, Utility x1 10587 | -6/Factory | Identified exit to Lower Caves 10587 | -6/Factory | Identified exit to Extension 11453 | -6/Factory | Lost 3 parts (1n1u1w) 11458 | -6/Factory | Discovered new exit (range 10) 11936 | -6/Factory | Repaired Imp. Heavy Armor Plating 11963 | -6/Factory | Repaired Med. Reactive Plating 12596 | -6/Factory | Spotted B-75 Beast 12656 | -6/Factory | Build established: Hacker-Mutant 12758 | -6/Factory | Discovered new exit (range 9) 13480 | -6/Factory | Lost 3 parts (1n2u) 14484 | -6/Factory | Fabricated Hvy. Siege Treads? 14566 | -6/Factory | Core integrity fell below 50% 14596 | -6/Factory | Lost 14 parts (1p3n6u4w) 14942 | -6/Factory | Build established: Scavenger-Mutant 15029 | -6/Factory | Discovered new exit (range 16) 15144 | -6/Factory | Repaired Broken Adv. Sensor Array 15227 | -6/Factory | System corruption reached 10% 15565 | -6/Factory | Lost 4 parts (2u2w) 15566 | -6/Factory | Fabricated Imp. Heavy Armor Plating? 15601 | -6/Factory | Fabricated Imp. Heavy Armor Plating? 15988 | -6/Factory | Fabricated Hvy. Siege Treads (x1) 16008 | -6/Factory | First assault squad dispatched 16052 | -6/Factory | Entered Lower Caves 16064 | -6/Lower Caves | Learned location of Extension (-6) 16092 | -6/Lower Caves | Found Alien Artifact 16092 | -6/Lower Caves | Identified Core Expander 16092 | -6/Lower Caves | Installed Core Expander, added new Propulsion slot 16526 | -6/Lower Caves | Attracted the attention of an 0b10 checkpoint 16627 | -6/Lower Caves | Spotted B-75 Beast 16639 | -6/Lower Caves | Learned Factory emergency access door positions 16647 | -6/Lower Caves | Build established: Mutant 16661 | -6/Lower Caves | Core integrity fell below 20% 16958 | -6/Lower Caves | Discovered new exit (range 6) 16966 | -6/Lower Caves | Entered another Lower Caves area 17065 | -6/Lower Caves | Learned 8 Factory zone layouts 17083 | -6/Lower Caves | Identified exit to Data Miner 17095 | -6/Lower Caves | Build established: Scavenger-Mutant 17362 | -6/Lower Caves | Spotted B-75 Beast 17456 | -6/Lower Caves | Entered Data Miner 17456 | -6/Data Miner | Discovered new exit (range 6) 17482 | -6/Data Miner | Met Data Miner 17506 | -6/Data Miner | Learned location of Section 7 (-2) 17506 | -6/Data Miner | Acquired the access code to Warlord's prototype stash 17523 | -6/Data Miner | Received God Mode back door access code from Data Miner 17554 | -6/Data Miner | Entered Proximity Caves 17559 | -5/Proximity Caves | Spotter reported a threat 17661 | -5/Proximity Caves | Spotted B-75 Beast 17663 | -5/Proximity Caves | Escorted by Enhanced Grunt 17956 | -5/Proximity Caves | Destroyed B-75 Beast 18348 | -5/Proximity Caves | Discovered new exit (range 11) 18364 | -5/Proximity Caves | Entered Factory 18364 | -5/Factory | Evolved 2 slots: Utility x1, Weapon x1 18597 | -5/Factory | Allied Derelicts emerged from ambush trap array 18718 | -5/Factory | Discovered new exit (range 7) 18815 | -5/Factory | Identified exit to Upper Caves 18894 | -5/Factory | Build established: Scavenger-Gunner 18926 | -5/Factory | P-70 Sage assimilated allied 8P-KNZ(g) 18970 | -5/Factory | Spotted B-75 Beast 19546 | -5/Factory | Discovered new exit (range 12) 19891 | -5/Factory | Discovered new exit (range 7) 20464 | -5/Factory | First assault squad dispatched 20562 | -5/Factory | Discovered exit to Upper Caves (range 10) 20563 | -5/Factory | Fabricated Imp. Heavy Armor Plating? 20602 | -5/Factory | Lost 3 parts (1n1u1w) 20609 | -5/Factory | Destroyed 8 combat bots 20780 | -5/Factory | Entered Upper Caves 21112 | -5/Upper Caves | Build established: Tank 21217 | -5/Upper Caves | Identified exit to Upper Caves 21483 | -5/Upper Caves | Spotted B-75 Beast 21597 | -5/Upper Caves | Entered another Upper Caves area 21598 | -5/Upper Caves | Encountered a Warlord checkpoint 21694 | -5/Upper Caves | Build established: Derelict-Tank 22188 | -5/Upper Caves | Learned 4 Factory zone layouts 22193 | -5/Upper Caves | Discovered new exit (range 2) 22336 | -5/Upper Caves | Entered Warlord 22410 | -5/Warlord | System corruption cleaned by Quarantine Array 22773 | -5/Warlord | Build established: Hacker-Tank 23053 | -5/Warlord | Met Warlord 23069 | -5/Warlord | Opened Warlord's prototype stash 23078 | -5/Warlord | Warlord's base attacked by MAIN.C 23086 | -5/Warlord | Found Prototype Device 23086 | -5/Warlord | Identified Exp. Cloaking Device 23428 | -5/Warlord | Warlord forces counterattacked 23742 | -5/Warlord | Opened side exit 23753 | -5/Warlord | Warlord base infiltrated, sounded retreat 23778 | -5/Warlord | Spotted Executioner 23806 | -5/Warlord | Spotted Executioner 23812 | -5/Warlord | Discovered new exit (range 11) 23835 | -5/Warlord | Entered Proximity Caves 23990 | -4/Proximity Caves | Spotter reported a threat 24113 | -4/Proximity Caves | Build established: Scavenger-Tank 24320 | -4/Proximity Caves | Discovered new exit (range 16) 24347 | -4/Proximity Caves | Entered Factory 24347 | -4/Factory | Evolved 2 slots: Utility x1, Weapon x1 24422 | -4/Factory | Identified exit to Research 24771 | -4/Factory | Discovered new exit (range 4) 24818 | -4/Factory | Build established: Hacker-Gunner 24925 | -4/Factory | Repaired Hvy. Siege Treads 25007 | -4/Factory | Lost 6 parts (1p3u2w) 25033 | -4/Factory | Repaired Imp. Heavy Armor Plating 25177 | -4/Factory | Found Powered Armor 25275 | -4/Factory | Lost 5 parts (1n2u2w) 25475 | -4/Factory | Destroyed 7 combat bots 25535 | -4/Factory | Repaired Imp. Heavy Armor Plating 25674 | -4/Factory | System corruption reached 10% 25992 | -4/Factory | Build established: Scavenger-Gunner 26431 | -4/Factory | Discovered new exit (range 13) 26597 | -4/Factory | First assault squad dispatched 26687 | -4/Factory | Spotted B-86 Titan 26770 | -4/Factory | Lost 4 parts (1u3w) 26908 | -4/Factory | Repaired Imp. Heavy Armor Plating 27002 | -4/Factory | Lost 6 parts (3n1u2w) 27012 | -4/Factory | Destroyed 10 combat bots 27080 | -4/Factory | Lost 7 parts (1p3u3w) 27116 | -4/Factory | Incoming assault squad redirected 27319 | -4/Factory | Build established: Mutant 27356 | -4/Factory | Entered Research 27356 | -3/Research | Evolved 2 slots: Weapon x2 27368 | -3/Research | Found Prototype Device 27368 | -3/Research | Identified Exp. EM Disruption Field 27371 | -3/Research | Found Exp. EM Disruption Field 27655 | -3/Research | First assault squad dispatched 27680 | -3/Research | Garrison activated, responded to threat 27697 | -3/Research | Lost 3 parts (1p1n1u) 27795 | -3/Research | Core integrity fell below 50% 27804 | -3/Research | Core integrity fell below 20% 27810 | -3/Research | Destroyed by H-71 Marshal with Heavy Mass Driver Last Messages --------------- 27787_ Penetrated by Slug. 27788_ Hvy. Treads destroyed. 27789_ U-05 Engineer builds a Wall. 27789_ Knocked back. 27794_ Acquired 66 matter. 27794_ Adv. Salvage Targeting Computer severed. 27795_ Penetrated by Slug. 27795_ U-05 Engineer builds a Wall. 27797_ System corrupted: Matter fused (-7). 27797_ K-01 Serf collects debris. 27798_ R-10 Processor collects Propulsion Shielding. 27798_ Hcp. Storage Unit destroyed. 27801_ R-10 Processor collects Lrn. Tractor Beam. 27804_ Acquired Adv. Medium Treads. 27804_ R-10 Processor collects Plasma Rifle. 27804_ Adv. Medium Treads severed. 27806_ K-01 Serf collects debris. 27807_ R-10 Processor collects Cesium-ion Thruster. 27808_ Mak. System Shield severed. 27809_ K-01 Serf collects debris. Map ----- +----------------------------------------------------+ | ?????????????????????????????????????????????????? | | ?????????????????????????????????????????????????? | | ?????????????????????????????????????????????????? | | ?????????????????????????????????????????????????? | | ?????????????????????????????????????????????????? | | ?????????????????????????????????????????????????? | | ?????????????????????????????????????????????????? | | ?????????????????????????????????????????????????? | | ?????????????????????????????????????????????????? | | ?????????????????????????????????????????????????? | | ?????????????????????????????????????????????????? | | ??????????????????????? ?????????????????????????? | | ??????????????????????? ?????????????????????????? | | ??????????????????????? ?????????????????????????? | | ??????????????????????? ?????????????????????????? | | ???????????????????????+?????????????????????????? | | ??????????????????????? ?????????????????????????? | | ??????????????????????# ?????????????????????????? | | ??? ???????????????# #? ?????????????????????? | | ??? #??????????????# #? ?????????????????????? | | ??? #??????????????# #? ???#?????????????????? | | ??# #??????????????# #? ?? #?????????????????? | | ??# #??????????????# #? ??????????????????? | | ??# #??????????????#!#? ????????????????????? | | ??# #??????????????#%##+##????????????????????? | | ??# #?????????????##kl@%!###### #???????????? | | ??/ +?????????????##RgH]% %A ????????? | | ??# #?????????????##%*A%!###### #???????????? | | ??# #?????????????##%!%!%#????????????????????? | | ### ################!!! #????????????????????? | | !! #????????????????????? | | !! #????????????????????? | | !! #????????????????????? | | #????????????????????? | | ####/############ #????????????????????? | | #????# = #????????????????????? | | #????# [%* ##???????????????????? | | == #????# % +??????????????????? | | == #????# % ##########??????????????????? | | = ######%=%%#???????????????????????????? | | + %% *#???????????????????????????? | | #######+########??????????????????????? | | "" "" # !| == ##????????????????????? | | ""T"" # %==!| #?????????????????????? | | """ # = #?????????????????????? | | # #?????????????????????? | | # #?????????????????????? | | #"" ""###### """ """ #?????????????????????? | | #""G""#????# """ """ #?????????????????????? | | #######????# """ """ #?????????????????????? | +----------------------------------------------------+ Best States ------------- Heat Dissipation 71 Energy Generation 21 Energy Capacity 310 Matter Stores 300 Matter Capacity 300 Sight Range 20 Robot Scan Range 16 Terrain Scan Density 210 Cloak Strength 4 Armor Coverage 2450 Resistance: KI 30 Resistance: TH 20 Resistance: EM 75 Core Shielding 20 Weapon Cycling 15 Phase Shifting 5 Evasion (%) 55 Targeting Accuracy 8 Target Analysis 11 Recoil Reduction 5 Kinecelleration 30 Salvage Targeting 3 Offensive Hacking 24 Defensive Hacking 25 Authchip Count 1 Item Schematics ----------------- Imp. Weapon Cycler | -7/Factory | Hacked Hvy. Siege Treads | -6/Factory | Scanalyzed Imp. Heavy Armor Plating | -6/Factory | Scanalyzed Weapon Mount | -6/Factory | Hacked Combat Drone Bay | -6/Data Miner | Free Lgt. Regenerative Plating | -6/Data Miner | Free Cld. Gravmag System | -6/Data Miner | Free Exp. Heat Sink | -6/Data Miner | Free Mni. Smartbomb Launcher | -6/Data Miner | Free Centrium Wheel | -6/Data Miner | Free Adv. Power Amplifier | -6/Data Miner | Free Dispersion Rifle | -6/Data Miner | Free Railgun | -6/Data Miner | Free Hvy. Disruptor Cannon | -6/Data Miner | Free Com. HERF Cannon | -6/Data Miner | Free Hyp. Railgun | -5/Factory | Hacked Robot Schematics ------------------ R-10 Processor | -6/Data Miner | Free L-41 Fighter | -6/Data Miner | Free Y-64 Sentinel | -6/Data Miner | Free O-32 Director | -6/Data Miner | Free G-67 Veteran | -6/Data Miner | Free L-61 Swordsman | -6/Data Miner | Free Fabricated ------------ L-41 Fighter | x3 | -7/Factory | Preloaded Hvy. Siege Treads | x1 | -6/Factory Imp. Heavy Armor Plating | x1 | -6/Factory Imp. Heavy Armor Plating | x1 | -6/Factory Hvy. Siege Treads | x1 | -6/Factory Imp. Heavy Armor Plating | x1 | -5/Factory Alien Tech Used ----------------- Core Expander Achievements -------------- Can't Touch This Overkill Turtlemind Challenges ------------ None Game ------ Seed SalvageReinforcedMultirail Manual? 0 Play Time 03:19:55 Cumulative 141.2 hours Start 2024.05.31 @ 22:55:30 End 2024.06.01 @ 02:18:15 Sessions 3 Manual Loads 0 Difficulty Rogue Special Mode None Game No. 89 Rogue 89 Adventurer 0 Explorer 0 Win Type - Total 2 Types 1/0/0/1/0/0/0/0/0 Lore% 67 Gallery% 57 Achievement% 52 Wizard Run 0 Options --------- Layout 0 ASCII 0 Keyboard 0 Movement Mouse Keybinds 0 Fullscreen 1 Font 18/SmallcapsGlow Map View 76x50 Zoom Use 0% Tactical HUD 1 Map Filters NONE Filters NONE Steam 1 RUN: 4565addd-0159-4fee-8ae8-30f8e2d03303